Cogmind - Beta 17.1 @@@ ROGUE MODE // 2026.09.04 @ 23:35:58 Player: Finn Result: Destroyed by G-47 Trooper with Particle Gun Performance ------------- Evolutions (2) 1000 Regions Visited (3) 600 Robots Destroyed (34) 170 Value Destroyed (969) 969 Prototype IDs (5) 100 Alien Tech Used (0) 0 Bonus (0) 0 TOTAL SCORE: 2839 Bonus ------- None Cogmind --------- Core Integrity 0/550 Matter 300/300 Energy 100/100 System Corruption 3% Temperature Cool (9) Movement Core (50) Location -8/Materials Parts ------- > --- POWER (1) -------- (None) > --- PROPULSION (5) --- (None) > --- UTILITY (3) ------ (None) > --- WEAPON (2) ------- (None) > --- INVENTORY (5) ---- Light Ion Engine Improved Ion Engine Compact Wheel Cesium-ion Thruster Light Assault Rifle Peak State ------------ > --- POWER ------------ Light Ion Engine > --- PROPULSION ------- Flight Unit > --- UTILITY ---------- Small Storage Unit Structural Scanner Shield Generator > --- WEAPON ----------- Improved EM Shotgun Light Assault Rifle > --- INVENTORY -------- Ion Engine Light Ion Engine Improved Ion Engine Improved Ion Engine Compact Wheel Assault Rifle Light Assault Rifle Heavy Assault Rifle [Rating: 11] Favorites ----------- Power Light Ion Engine Engine Light Ion Engine Propulsion Flight Unit Leg Aluminum Leg Wheel Armored Wheel Flight Unit Flight Unit Utility Small Storage Unit Device Shield Generator Storage Small Storage Unit Weapon Light Assault Rifle Energy Gun Improved EM Shotgun Ballistic Gun Light Assault Rifle Launcher Rocket Launcher Build | -11 -10 -9 -8 ------- Run | Yrd Mat Mat Mat Slots Evolved 4 | . . 2 2 Power . | . . . . Propulsion 3 | . . 2 1 Utility 1 | . . . 1 Weapon . | . . . . Parts Attached 25 | 5 6 3 11 Power 4 | 1 . 1 2 Engine 4 | 1 . 1 2 Core . | . . . . Reactor . | . . . . Propulsion 10 | 2 4 . 4 Treads . | . . . . Leg 4 | . . . 4 Wheel 4 | 2 2 . . Hover . | . . . . Flight 2 | . 2 . . Utility 5 | . 2 1 2 Device 4 | . 1 1 2 Storage 1 | . 1 . . Processor . | . . . . Hackware . | . . . . Protection . | . . . . Artifact . | . . . . Weapon 6 | 2 . 1 3 Energy Gun 1 | . . 1 . Energy Cannon . | . . . . Ballistic Gun 4 | 2 . . 2 Ballistic Cannon . | . . . . Launcher 1 | . . . 1 Special Weapon . | . . . . Impact Weapon . | . . . . Slashing Weapon . | . . . . Piercing Weapon . | . . . . Special Melee Weapon . | . . . . Unidentified Prototypes 1 | . . 1 . Parts Lost 20 | . 1 2 17 Power 4 | . 1 . 3 Propulsion 6 | . . 1 5 Utility 5 | . . 1 4 Weapon 5 | . . . 5 Highest Loss Streak 6 | . 1 2 6 To Critical Strikes . | . . . . Average Backups 6 | 2 4 6 6 Power 2 | . 1 3 3 Propulsion 1 | . 1 1 1 Utility . | . . . . Weapon 1 | . 1 2 2 Tool/Special . | . . . . Unused Backups 3 | . . . 3 Power 2 | . . . 2 Propulsion 1 | . . . 1 Utility . | . . . . Weapon . | . . . . Tool/Special . | . . . . Average Slot Usage (%) 65 | . 93 61 49 Engine 9 | . 13 9 7 Leg 4 | . . . 9 Wheel 6 | . 23 . . Flight 6 | . 4 14 3 Device 7 | . 10 4 7 Storage 10 | . 12 11 8 Energy Gun 3 | . . 5 3 Ballistic Gun 16 | . 28 16 9 Peak Build Rating 11 | 5 10 9 11 Average Rating 7 | 3 8 7 7 On Entrance 5 | . 5 7 9 Avg Prop Armor Cover (%) . | . . . . Naked Turns 14 | . . . 14 Heaviest Build 15 | 7 14 13 15 Greatest Support 32 | 32 32 8 30 Greatest Overweight (x) 4 | . 1 2 4 Average Overweight (x) . | . . 1 . Largest Inventory Capacity 8 | 5 8 8 8 Average Capacity 7 | 5 7 8 7 Most Carried 8 | 4 7 8 8 Average Carried 6 | 2 4 6 6 Final Capacity 8 | 5 8 8 5 Final Carried 8 | 3 6 8 5 Class Distribution -------------------- 95% | Mutant 4% | Infiltrator-Mutant Dominant Class ---------------- Mutant | -10/Materials Mutant | -9/Materials Mutant | -8/Materials Resources | -11 -10 -9 -8 ----------- Run | Yrd Mat Mat Mat Matter Collected 672 | 241 139 74 218 Remotely . | . . . . Salvage Created 1366 | . 482 222 662 Parts 78 | . 19 17 42 Haulers Intercepted . | . . . . Recyclers Shooed 4 | . 2 . 2 Parts Field Recycled . | . . . . Retrieved Matter . | . . . . Parts Self-Destructed . | . . . . Prevented . | . . . . Parts Restored . | . . . . Kills | -11 -10 -9 -8 ------- Run | Yrd Mat Mat Mat Combat Hostiles Destroyed 25 | . 10 3 12 Guns 23 | . 10 3 10 AOE 2 | . . . 2 Classes Destroyed 10 | . 4 2 4 Worker 2 | . 1 1 . Builder 2 | . . 2 . Recycler 2 | . 2 . . Mechanic 1 | . . . 1 Watcher 2 | . . . 2 Swarmer 5 | . 5 . . Grunt 15 | . 5 2 8 Brawler 1 | . . . 1 Duelist 1 | . . . 1 Sentry 3 | . . 1 2 Best Kill Streak 5 | . 5 1 5 Combat Bots Only 5 | . 5 1 4 Max Kills in Single Turn 2 | . 1 1 2 Gunslinging . | . . . . Exploded 1 | . . . 1 Melee . | . . . . Uniques/NPCs Destroyed . | . . . . Combat | -11 -10 -9 -8 -------- Run | Yrd Mat Mat Mat Hostile Shots Fired 219 | . 76 10 133 Missed 60 | . 19 2 39 Hits 159 | . 57 8 94 Melee 11 | . . . 11 Projectile 148 | . 57 8 83 AOE 2 | . . . 2 Critical Strikes 5 | . . . 5 Damage Taken 2133 | . 373 82 1678 Core 687 | . 112 23 552 Absorbed by Shields 206 | . 151 27 28 Regen/Repaired (Parts) 19 | . . 19 . Core Remaining (%) 83 | 100 55 94 . Volleys Fired 127 | . 50 20 57 Largest 2 | . 2 2 2 Hottest 65 | . 40 65 65 Shots Fired 230 | . 100 40 90 Gun 228 | . 100 40 88 Cannon . | . . . . Launcher 2 | . . . 2 Special . | . . . . Kinetic 209 | . 100 32 77 Thermal . | . . . . Explosive 2 | . . . 2 Electromagnetic 19 | . . 8 11 Robot Hit Streak 21 | . 10 6 21 Robot Miss Streak 6 | . 4 6 2 Penetration Max . | . . . . Secondary Targets 2 | . . . 2 Max Gunslinging Chain 1 | . . . 1 Shots Hit Robots 162 | . 65 24 73 Core Hits 80 | . 25 12 43 Critical Kills . | . . . . Critical Parts Destroyed 4 | . 2 . 2 Critical Strikes 4 | . 2 . 2 Destroy 4 | . 2 . 2 Melee Attacks . | . . . . Impact . | . . . . Slashing . | . . . . Piercing . | . . . . Sneak Attacks . | . . . . Combat Hostiles . | . . . . Follow-up Attacks . | . . . . Damage Inflicted 2053 | . 540 268 1245 Guns 1726 | . 540 267 919 Cannons . | . . . . Explosions 288 | . . . 288 Melee . | . . . . Ramming 39 | . . 1 38 Kinetic 1348 | . 540 133 675 Thermal . | . . . . Explosive 288 | . . . 288 Electromagnetic 378 | . . 134 244 Impact . | . . . . Slashing . | . . . . Piercing . | . . . . Highest Corruption 3 | . . 2 3 Average Corruption 1 | . . 2 1 Corruption Purged . | . . . . Corruption Blocked . | . . . . Effects 3 | . . . 3 Matter Fused 1 | . . . 1 Data Loss (minor) 2 | . . . 2 Overload Shots . | . . . . Overflow Damage 5 | . . . 5 Projectiles . | . . . . Explosions 5 | . . . 5 Melee . | . . . . Knockbacks . | . . . . Impact . | . . . . Kinetic . | . . . . Secondary . | . . . . Self-Inflicted Damage 98 | . . . 98 Shots 2 | . . . 2 Rammed 10 | . . 1 9 Targets Rammed 15 | . . 1 14 Kicked 5 | . . . 5 Crushed . | . . . . Highest Temperature 45 | . 16 26 45 Average Temperature 9 | . 5 11 12 Received Heat Transfer 762 | . 100 26 636 Siege Activations . | . . . . Martial Activations . | . . . . Shielding Activations . | . . . . Robots Disrupted . | . . . . Combat Hostiles . | . . . . Robots Corrupted . | . . . . Combat Hostiles . | . . . . Parts Fried 2 | . . . 2 Impact Corruptions . | . . . . Robots Melted . | . . . . Combat Hostiles . | . . . . Parts Melted . | . . . . Heat Transferred . | . . . . Parts Sabotaged . | . . . . Parts Stolen . | . . . . Parts Stripped . | . . . . Power Chain Reactions . | . . . . Alert | -11 -10 -9 -8 ------- Run | Yrd Mat Mat Mat Maximum Alert Level . | . . . . Low Security (%) 100 | 100 100 100 100 Level 1 . | . . . . Level 2 . | . . . . Level 3 . | . . . . Level 4 . | . . . . Level 5 . | . . . . High Security . | . . . . Max Security . | . . . . Peak Influence 145 | . 145 61 94 Initial 61 | . . 61 . Average 32 | . 46 17 36 Influence Increases 748 | . 263 115 370 Destroy 0b10 Robot/C 500 | . 200 60 240 Destroy 0b10 Robot/NC 45 | . 15 15 15 Destroy Leader 124 | . 40 20 64 Successful Hack 13 | . 8 5 . Destroy Structure 6 | . . . 6 Lose Combat Pursuer 60 | . . 15 45 Influence Decreases 741 | . 118 260 363 Entered New Map 84 | . . 84 . Time Decay 469 | . 108 165 196 Lost Part 188 | . 10 11 167 Squads Dispatched 7 | . 3 1 3 Investigation 2 | . 1 . 1 Extermination . | . . . . Reinforcement 5 | . 2 1 2 Assault . | . . . . Garrison . | . . . . Intercept . | . . . . Searches Triggered . | . . . . Construction Impeded . | . . . . Haulers Reinforced . | . . . . Active Scanning Responses . | . . . . Cargo Convoy Interrupts . | . . . . Stealth | -11 -10 -9 -8 --------- Run | Yrd Mat Mat Mat Distress Signals 5 | . 1 1 3 Communications Jammed . | . . . . Distress Signals . | . . . . Times Spotted 49 | . 14 9 26 Peak Tracking Total 8 | . 5 2 8 Tactical Retreats 4 | . . 1 3 Traps | -11 -10 -9 -8 ------- Run | Yrd Mat Mat Mat Traps Triggered 2 | . 1 1 . Indirectly . | . . . . Trap Hack Attempts . | . . . . Triggered . | . . . . Disarmed . | . . . . Reprogrammed . | . . . . Reused . | . . . . Traps Extracted . | . . . . Installed . | . . . . Triggered . | . . . . Machines | -11 -10 -9 -8 ---------- Run | Yrd Mat Mat Mat Machines Disabled . | . . . . Max in Single Turn . | . . . . Machines Repaired . | . . . . Machines Dismantled . | . . . . Machines Sabotaged . | . . . . Overloaded Fab Kills . | . . . . Hacking | -11 -10 -9 -8 --------- Run | Yrd Mat Mat Mat Machines Accessed 11 | . 4 5 2 Terminals 9 | . 4 3 2 Fabricators . | . . . . Repair Stations 1 | . . 1 . Recycling Units . | . . . . Scanalyzers 1 | . . 1 . Garrison Access . | . . . . Total Hacks 22 | . 7 11 4 Successful 10 | . 3 5 2 Failed 12 | . 4 6 2 Catastrophic 2 | . 1 1 . Database Lockouts . | . . . . Manual . | . . . . Terminals 18 | . 7 7 4 Fabricators . | . . . . Repair Stations 3 | . . 3 . Recycling Units . | . . . . Scanalyzers 1 | . . 1 . Garrison Access . | . . . . Terminal Hacks 7 | . 3 2 2 Prototype ID Bank 2 | . . 2 . Level Access Points 1 | . 1 . . Registered Components 1 | . 1 . . Registered Prototypes 1 | . . . 1 Zone Layout 2 | . 1 . 1 Fabricator Hacks . | . . . . Repair Station Hacks 2 | . . 2 . Scan Component 1 | . . 1 . Repair 1 | . . 1 . Recycling Unit Hacks . | . . . . Scanalyzer 1 | . . 1 . Retrieve Study 1 | . . 1 . Garrison Access Hacks . | . . . . Unauthorized Hacks . | . . . . Terminals . | . . . . Fabricators . | . . . . Repair Stations . | . . . . Recycling Units . | . . . . Scanalyzers . | . . . . Garrison Access . | . . . . Data Cores Recovered . | . . . . Used . | . . . . Hacking Detections 6 | . 2 3 1 Full Trace Events 1 | . . . 1 Feedback Events . | . . . . Feedback Blocked . | . . . . Robot Schematics Acquired . | . . . . Robots Built . | . . . . Authchips . | . . . . Time . | . . . . Total Robot Build Rating . | . . . . Part Schematics Acquired . | . . . . Parts Built . | . . . . Authchips . | . . . . Time . | . . . . Total Part Build Rating . | . . . . Part Studies Acquired 1 | . . 1 . Parts Repaired 1 | . . 1 . Time 26 | . . 26 . Parts Recycled . | . . . . Recycled Matter . | . . . . Retrieved Matter . | . . . . Retrieved Components . | . . . . Parts Scanalyzed . | . . . . Part Schematics Acquired . | . . . . Parts Damaged . | . . . . Bothacking | -11 -10 -9 -8 ------------ Run | Yrd Mat Mat Mat Used RIF Installer . | . . . . Robots Hacked . | . . . . Non-combat . | . . . . Combat . | . . . . Robot Hacks Applied . | . . . . Relay Couplers Released . | . . . . Fabnet Peak Effective % . | . . . . Robots Rewired . | . . . . Allies Hacked . | . . . . Hacks Repelled . | . . . . Allies | -11 -10 -9 -8 -------- Run | Yrd Mat Mat Mat Total Allies . | . . . . Largest Group . | . . . . Highest-Rated Group . | . . . . Highest-Rated Ally . | . . . . Total Orders . | . . . . Ally Attacks . | . . . . Total Damage . | . . . . Kills . | . . . . Allies Corrupted . | . . . . Allies Melted . | . . . . Intel | -11 -10 -9 -8 ------- Run | Yrd Mat Mat Mat Active Infowar (turns) 399 | . . 13 386 Structural 315 | . . 13 302 ECM 112 | . . . 112 Robot Analysis Total . | . . . . Derelict Logs Recovered . | . . . . Drone Launches . | . . . . Drone Recoveries . | . . . . Exploration | -11 -10 -9 -8 ------------- Run | Yrd Mat Mat Mat Turns Passed 1552 | 56 418 447 631 Spaces Moved 806 | 41 282 192 291 Core 25 | 8 . . 17 Treads . | . . . . Legs 178 | . . . 178 Wheels 293 | 33 260 . . Hover . | . . . . Flight 310 | . 22 192 96 Fastest Speed 50 | 50 90 117 50 Average Speed 132 | 90 94 169 151 Slowest Speed 250 | 100 117 200 250 Overloaded Moves . | . . . . Propulsion Burnouts . | . . . . Robots Hopped . | . . . . Potential Cave-ins . | . . . . Cave-ins Triggered . | . . . . Exploration Rate (%) 25 | 4 42 23 31 Regions Visited 3 Branch Regions . Pre-discovered Areas . | . . . . Known Exits Taken 1 | . 1 . . Unknown Exits Taken 2 | 1 . 1 . Scrap Searched . | . . . . Spaces Dug . | . . . . Terrain Destroyed 6 | . . . 6 Melee . | . . . . Projectile . | . . . . AOE 6 | . . . 6 Terrain Rammed . | . . . . Walls Destroyed . | . . . . Machines Disabled . | . . . . Actions | -11 -10 -9 -8 --------- Run | Yrd Mat Mat Mat Total 1087 | 59 353 279 396 Wait 87 | 6 7 57 17 Move 803 | 40 281 191 291 Hop . | . . . . Pick Up 25 | 8 7 5 5 Fast Attach 4 | . . 1 3 Attach 19 | 5 4 2 8 Detach . | . . . . Swap 4 | . 2 1 1 Drop 3 | . 2 1 . Fire 127 | . 50 20 57 Melee . | . . . . Ram 10 | . . 1 9 Kick 5 | . . . 5 Crush . | . . . . Escape Stasis . | . . . . Rewire . | . . . . Trap . | . . . . Miscellaneous . | . . . . Route ------- -11/Scrapyard -10/Materials (discovered 3 exits: *Mat x3) -9/Materials -8/Materials History --------- Turn | Location | Event 8 | -11/Scrapyard | Discovered new exit (range 15) 57 | -11/Scrapyard | Entered Materials 315 | -10/Materials | Build established: Mutant 365 | -10/Materials | Identified exit to Materials 475 | -10/Materials | Entered another Materials area 475 | -9/Materials | Evolved 2 slots: Propulsion x2 530 | -9/Materials | Repaired Flight Unit 867 | -9/Materials | Discovered new exit (range 13) 922 | -9/Materials | Entered another Materials area 922 | -8/Materials | Evolved 2 slots: Propulsion x1, Utility x1 1182 | -8/Materials | Lost 3 parts (1n1u1w) 1362 | -8/Materials | Lost 6 parts (1p1n1u3w) 1533 | -8/Materials | Core integrity fell below 50% 1544 | -8/Materials | Core integrity fell below 20% 1553 | -8/Materials | Destroyed by G-47 Trooper with Particle Gun Last Messages --------------- 01529_ Ion Engine destroyed. 01535_ ALERT: Suspicious intruders detected, dispatching Cutter reinforcements to area. 01537_ C-17 Slicer knocked back. 01537_ R-06 Scavenger knocked back. 01537_ C-17 Slicer knocked back. 01538_ Knocked back. 01538_ T-07 Excavator is excavating. 01538_ Aluminum Leg destroyed. 01539_ Sml. Storage Unit destroyed. 01539_ System corrupted by crushing effect (+1). 01539_ Knocked back. 01540_ The unstable cave ceiling collapses. 01546_ Slammed into C-17 Slicer. 01546_ K-01 Serf collects debris. 01547_ Slammed into C-17 Slicer. 01547_ Destabilizing: System corrupted (+1). 01548_ Slammed into C-17 Slicer. 01551_ K-01 Serf collects debris. 01552_ Slammed into C-17 Slicer. Map ----- +----------------------------------------------------+ | | | | | | | | | | | | | | | | | | | | | | | ????????#########????????????????????????????????? | | ???????? ????????????????????????????????? | | ???????? ????????????????????????????????? | | ????????? ?????????????????????????????????? | | ????????? ?????????????????????????????????? | | ?????????? ??????????????????????????????????? | | ?????????? ??????????????????????????????????? | | ??????????? ???????????####??????###???????????? | | ??????????? ???????#### ##??## t #???????????? | | ############+######### ## #???????????? | | ???????? | | H ???????? | | k r ???????? | | +######+###### ###### # # ### ### ????????? | | ?????????????# ## Ycg@### ? #??????????? | | ?????????????# ## """ """c#???T ???#??????????? | | ?????????????# ## """ """c#???? !?????????????? | | ?????????????# ## """ """%#????? !]????????????? | | ?????????????# ## #?????? ????????????? | | ?????????????# ## ! #????????? ????????????? | | ????????###??# ## #??????????????????????? | | ???????##! ??# ## #??????????????????????? | | ???????#! ### ############??????????????????????? | | ???????#! #???????????????????????????????? | | ???????#! ########????????????????????????? | | ???????#! T ??????????????????????? | | ???????##! ##+####?????????????????????????? | | ????????#### #???????????????????????????????? | | ???????????## ##???????????????????????????????? | | ????????????# #????????????????????????????????? | | ????????????# #????????????????????????????????? | | ????????????# #????????????????????????????????? | | ????????????# #????????????????????????????????? | | ????????????# #????????????????????????????????? | | /##???????### ###?????????########?????????????? | | ??????#/ ######????# #?????????????? | | ####### # ????# #??????????? ?? | | # ] ""????# """ #??????????? ?? | | " / # "?????# """ #??????????? ?? | +----------------------------------------------------+ Best States ------------- Heat Dissipation 31 Energy Generation 12 Energy Capacity 265 Matter Stores 300 Matter Capacity 300 Sight Range 16 Terrain Scan Density 10 ECM Strength 1 Evasion (%) 55 Item Schematics ----------------- None Robot Schematics ------------------ None Fabricated ------------ Nothing Repaired ---------- Flight Unit | 5% | -9/Materials Studied --------- Flight Unit | -9/Materials | Hacked Alien Tech Used ----------------- None Achievements -------------- None Challenges ------------ None Game ------ Seed ThermalWeightUnit Manual? 0 Play Time 00:14:51 Cumulative 33.9 hours Start 2026.09.04 @ 23:24:52 End 2026.09.04 @ 23:35:58 Sessions 1 Manual Loads 0 Difficulty Rogue Special Mode None Game No. 83 Rogue 66 Adventurer 15 Explorer 2 Win Type - Total 0 Types 0/0/0/0/0/0/0/0/0/0 Lore% 25 Gallery% 26 Achievement% 22 Wizard Run 0 Options --------- Layout 1 ASCII 0 Keyboard 0 Movement Mouse Keybinds 0 Fullscreen 1 Font 24/Smallcaps Map View 50x35 Zoom Use 0% Tactical HUD 1 Map Filters NONE Filters NONE Steam 1 RUN: 29a6523a-42b5-41f6-9ddb-a951e7c8a6ad